fUSD/lending_fUSD_20240531
["ID","MTS","AMOUNT","RATE_DAILY","PERIOD"]
[328327203,1717168713103,-4994.6391977,0.00034699,30]
[328327204,1717168713126,-745.81896402,0.00034699,120]
[328327205,1717168713150,-3854.48116114,0.00034699,30]
[328327206,1717168713172,-3839.81144476,0.00034699,120]
[328327207,1717168713194,-4618.68581386,0.00034699,30]
[328327208,1717168713216,-5017.52225518,0.00034699,30]
[328327209,1717168713241,-1806.92841978,0.00034699,120]
[328327210,1717168713264,-382.47761467,0.00034699,120]
[328327211,1717168713287,-1041.63407233,0.00034699,120]
[328327212,1717168713310,-2766.17202066,0.00034699,120]
[328327213,1717168713333,-4583.1477615,0.00034699,120]
[328327214,1717168713354,-22970.68875555,0.00034699,30]
[328327215,1717168713377,-7751.38748156,0.00034699,30]
[328327216,1717168713403,-6518.1876721,0.00034699,120]
[328327217,1717168713425,-7832.43445011,0.00034699,120]
[328327218,1717168713451,-2062.099999,0.00034699,30]
[328327219,1717168713476,-2000.0,0.00034699,30]
[328327220,1717168713500,-2000.0,0.00034699,30]
[328327221,1717168713523,-2000.0,0.00034699,30]
[328327222,1717168713546,-189.0,0.00034699,30]
[328327223,1717168713569,-189.0,0.00034699,30]
[328327224,1717168713594,-1337.66,0.00034699,60]
[328327225,1717168713616,-1337.66,0.00034699,60]
[328327226,1717168713639,-1337.66,0.00034699,60]
[328327227,1717168713661,-1337.66,0.00034699,60]
[328327228,1717168713684,-1337.66,0.00034699,60]
[328327229,1717168713706,-1337.66,0.00034699,60]
[328327230,1717168713728,-1337.66,0.00034699,60]
[328327231,1717168713751,-1337.66,0.00034699,60]
[328327232,1717168713775,-1337.66,0.00034699,60]
[328327233,1717168713798,-1337.66,0.00034699,60]
[328327234,1717168713822,-1337.66,0.00034699,60]
[328327235,1717168713844,-1337.78427513,0.00034699,60]
[328327236,1717168713866,-1034.299999,0.00034699,30]
[328327237,1717168713893,-333.985317,0.00034699,30]
[328327239,1717168724608,-363883.78430642,0.000329,30]
[328327240,1717168724790,-450.18660289,0.00033298,30]
[328327241,1717168724817,-1018.48309338,0.00033298,30]
[328327242,1717168724841,-5000.0,0.00033299,30]
[328327243,1717168724865,-778.02154041,0.00033299,30]
[328327244,1717168724892,-237.38641519,0.000333,30]
[328327245,1717168724923,-526.71163176,0.00033808,30]
[328327246,1717168724945,-526.71163176,0.00033945,30]
[328327247,1717168724969,-900.0,0.00034,35]
[328327248,1717168724993,-1000.0,0.00034,30]
[328327249,1717168725017,-526.71163176,0.00034082,30]
[328327250,1717168725040,-526.71163176,0.00034219,30]
[328327251,1717168725063,-526.71163176,0.00034356,30]
[328327252,1717168725086,-200.0,0.00034414,120]
[328327253,1717168725109,-526.71163176,0.00034521,30]
[328327254,1717168725131,-526.71163176,0.00034658,30]
[328327255,1717168725163,-526.71163176,0.00034795,30]
[328327256,1717168725185,-18010.84327474,0.000349,30]
[328327257,1717168725208,-526.71163176,0.00034932,30]
[328327258,1717168725232,-1722.63469286,0.00035,30]
[328327259,1717168725258,-1076.66216297,0.00035,30]
[328327260,1717168725281,-504.02422615,0.00035,30]
[328327261,1717168725303,-1689.56517542,0.00035,30]
[328327262,1717168725325,-4130.97,0.00035,30]
[328327263,1717168725349,-2000.0,0.00035,120]
[328327264,1717168725375,-900.0,0.00035,36]
[328327265,1717168725401,-950.0349743,0.00035,30]
[328327266,1717168725422,-450.0,0.0003502,30]
[328327267,1717168725446,-526.71163176,0.00035096,30]
[328327268,1717168725468,-526.71163176,0.00035233,30]
[328327269,1717168725492,-526.71163176,0.0003537,30]
[328327270,1717168725515,-526.71163176,0.00035507,30]
[328327271,1717168725538,-526.71163176,0.00035644,30]
[328327272,1717168725561,-526.71163176,0.00035808,30]
[328327273,1717168725585,-900.0,0.00036,37]
[328327274,1717168725607,-1405.38403923,0.00036,120]
[328327275,1717168725631,-150.0,0.00036627,120]
[328327276,1717168725653,-450.0,0.00036673,30]
[328327277,1717168725677,-1500.0,0.00037,60]
[328327278,1717168725699,-900.0,0.00037,38]
[328327279,1717168725724,-900.0,0.00038,39]
[328327280,1717168725745,-233.39676288,0.00038,30]
[328327281,1717168725769,-1250.0,0.00038,120]
[328327282,1717168725794,-150.0,0.00038074,120]
[328327283,1717168725818,-150.0,0.00038319,120]
[328327284,1717168725841,-450.0,0.00038327,30]
[328327285,1717168725866,-888.29357583,0.000389,30]
[328327286,1717168725890,-1191.4567773,0.00039,120]
[328327287,1717168725915,-150.0,0.00039319,120]
[328327288,1717168725937,-1627.0,0.0003951,120]
[328327289,1717168725960,-1117.86258,0.00039588,30]
[328327290,1717168725982,-478.59038871,0.0003961,120]
[328327291,1717168726006,-3000.0,0.00039726,90]
[328327292,1717168726028,-3000.0,0.00039726,90]
[328327293,1717168726050,-3000.0,0.00039726,90]
[328327294,1717168726074,-3000.0,0.00039726,90]
[328327295,1717168726098,-3000.0,0.00039726,90]
[328327296,1717168726122,-3000.0,0.00039726,90]
[328327297,1717168726145,-3000.0,0.00039726,90]
[328327298,1717168726167,-3000.0,0.00039726,90]
[328327299,1717168726190,-3000.0,0.00039726,90]
[328327300,1717168726213,-493.45203962,0.00039726,90]
[328327301,1717168726237,-1117.86258,0.00039788,30]
[328327302,1717168726264,-659.05635542,0.0003998,30]
[328327303,1717168726294,-1117.86258,0.00039988,30]
[328327304,1717168726330,-50000.0,0.0004,30]
[328327305,1717168726359,-200.0,0.0004,120]
[328327306,1717168726387,-1470.23278675,0.0004,30]
[328327307,1717168726417,-1493.44901686,0.0004,120]
[328327308,1717168726446,-422.00754242,0.0004,30]
[328327309,1717168726477,-173.0936542,0.0004,120]
[328327310,1717168726508,-231.21306793,0.0004,30]
[328327311,1717168726538,-1470.48687598,0.0004,120]
[328327312,1717168726566,-1000.0,0.0004,120]
[328327313,1717168726593,-9886.76,0.0004,120]
[328327314,1717168726620,-1150.0,0.0004,120]
[328327315,1717168726649,-20000.0,0.0004,30]
[328327316,1717168726676,-2000.0,0.0004,30]
[328327317,1717168726703,-2000.0,0.0004,120]
[328327318,1717168726730,-8000.0,0.0004,120]
[328327319,1717168726756,-320.88874921,0.0004001,30]
[328327320,1717168726784,-216.37767794,0.0004001,30]
[328327321,1717168726812,-289.75740628,0.0004001,120]
[328327322,1717168726842,-1233.0,0.0004005,120]
[328327323,1717168726871,-150.05942183,0.00040055,30]
[328327324,1717168726899,-3911.41382311,0.00040073,120]
[328327325,1717168726925,-1117.86258,0.00040188,30]
[328327326,1717168726949,-607.95580885,0.0004025,120]
[328327327,1717168726974,-166.55343036,0.00040383,30]
[328327328,1717168727004,-1117.86258,0.00040588,30]
[328327329,1717168727032,-150.0,0.00040727,120]
[328327330,1717168727057,-1117.86258,0.00040788,30]
[328327331,1717168727088,-562.0,0.000408,30]
[328327332,1717168727116,-5000.0,0.000409,30]
[328327333,1717168727143,-125494.78599,0.000409,30]
[328327334,1717168727168,-280.95399391,0.00040914,120]
[328327335,1717168727193,-1117.86258,0.00040988,30]
[328327336,1717168727223,-50000.0,0.00041,31]
[328327337,1717168727250,-949.47,0.00041,120]
[328327338,1717168727277,-102613.18968136,0.00041,60]
[328327339,1717168727303,-1027.94650152,0.00041,120]
[328327340,1717168727329,-510.0,0.00041095,120]
[328327342,1717168739424,393.98371063,0.0004001,30]
[328327343,1717168739808,145069.48192074,0.00033299,30]
[328327344,1717168742636,-135324.29872266,0.00033299,30]
[328327345,1717168742681,-280.55565002,0.00035,30]
[328327346,1717168742728,-187.6287428,0.000411,120]
[328327347,1717168742753,-195.53713014,0.00041117,30]
[328327348,1717168742777,-269.7,0.00041169,30]
[328327349,1717168742801,-1117.86258,0.00041188,30]
[328327350,1717168742826,-1208.0,0.00041253,30]
[328327351,1717168742852,-562.0,0.000413,31]
[328327352,1717168742875,-510.0,0.00041369,120]
[328327353,1717168742897,-154.2701707,0.00041432,30]
[328327354,1717168742919,-188.4781983,0.0004145,30]
[328327355,1717168742944,-202.82780287,0.000416,120]
[328327356,1717168742967,-158.9955785,0.00041605,30]
[328327357,1717168742990,-510.0,0.00041643,120]
[328327358,1717168743015,-269.7,0.00041769,30]
[328327359,1717168743040,-562.0,0.000418,31]
[328327360,1717168743066,-153.4057278,0.00041917,120]
[328327361,1717168743089,-1400.0,0.00041917,30]
[328327362,1717168743115,-700.0,0.00041917,30]
[328327363,1717168743138,-3900.0,0.00041917,30]
[328327364,1717168743160,-2800.0,0.00041917,30]
[328327365,1717168743182,-500.0,0.00041917,30]
[328327366,1717168743206,-150.0,0.00041918,30]
[328327367,1717168743229,-150.0,0.00041918,30]
[328327368,1717168743253,-150.0,0.00041918,30]
[328327369,1717168743275,-150.0,0.00041918,30]
[328327370,1717168743299,-150.0,0.00041918,30]
[328327371,1717168743323,-150.0,0.00041918,30]
[328327372,1717168743346,-150.0,0.00041918,30]
[328327373,1717168743374,-153.71960669,0.00041918,30]
[328327374,1717168743398,-151.82486644,0.00041918,30]
[328327375,1717168743424,-150.0,0.00041918,30]
[328327376,1717168743446,-150.0,0.00041918,30]
[328327377,1717168743472,-296.63962486,0.00041918,30]
[328327378,1717168743497,-150.0,0.00041918,30]
[328327379,1717168743520,-150.0,0.00041918,30]
[328327380,1717168743542,-150.0,0.00041918,30]
[328327381,1717168743565,-3556.37553955,0.00041918,60]
[328327382,1717168743588,-150.05942183,0.00041947,30]
[328327383,1717168743620,-50000.0,0.00042,32]
[328327384,1717168743642,-600.0,0.00042,30]
[328327385,1717168743665,-897.13261416,0.00042,120]
[328327386,1717168743688,-176.55673857,0.00042,120]
[328327387,1717168743711,-811.91549763,0.00042,120]
[328327388,1717168743735,-1024.0,0.00042,120]
[328327389,1717168743758,-1050.0,0.00042,120]
[328327390,1717168743781,-1000.0,0.00042,120]
[328327391,1717168743804,-198.3,0.00042,120]
[328327392,1717168743828,-1037.0,0.00042034,30]
[328327393,1717168743854,-150.0,0.00042059,30]
[328327394,1717168743879,-150.0,0.0004215,30]
[328327395,1717168743901,-150.0,0.000422,30]
[328327396,1717168743925,-159.05788221,0.0004222,30]
[328327397,1717168743951,-562.0,0.000423,32]
[328327398,1717168743976,-150.0,0.00042306,30]
[328327399,1717168743999,-150.0,0.00042306,30]
[328327400,1717168744022,-150.0,0.00042341,30]
[328327401,1717168744048,-269.7,0.0004237,30]
[328327402,1717168744072,-3016.57574606,0.0004238,60]
[328327403,1717168744096,-150.0,0.00042383,30]
[328327404,1717168744125,-150.0,0.00042413,120]
[328327405,1717168744148,-1400.0,0.00042465,30]
[328327406,1717168744172,-700.0,0.00042465,30]
[328327407,1717168744196,-3900.0,0.00042465,30]
[328327408,1717168744220,-2800.0,0.00042465,30]
[328327409,1717168744243,-500.0,0.00042465,30]
[328327410,1717168744267,-150.0,0.00042482,30]
[328327411,1717168744292,-150.0,0.00042595,120]
[328327412,1717168744316,-150.0,0.00042616,30]
[328327413,1717168744339,-150.0,0.00042623,30]
[328327414,1717168744364,-570.86881905,0.0004267,30]
[328327415,1717168744388,-150.0,0.00042694,30]
[328327416,1717168744417,-150.0,0.00042694,30]
[328327417,1717168744442,-150.0,0.00042694,30]
[328327418,1717168744466,-2386.0,0.000427,92]
[328327419,1717168744491,-150.05942183,0.00042738,30]
[328327420,1717168744514,-150.0,0.00042764,30]
[328327421,1717168744549,-568.641691,0.000428,32]
[328327422,1717168744574,-150.66714897,0.00042815,30]
[328327423,1717168744602,-150.0,0.00042849,30]
[328327424,1717168744626,-150.0,0.00042849,30]
[328327425,1717168744648,-150.0,0.00042905,30]
[328327426,1717168744672,-168.70512565,0.0004294,31]
[328327427,1717168744700,-50000.0,0.00043,33]
[328327428,1717168744722,-732.19331034,0.00043,120]
[328327429,1717168744745,-1000.0,0.00043,120]
[328327430,1717168744768,-1400.0,0.00043013,30]
[328327431,1717168744792,-700.0,0.00043013,30]
[328327432,1717168744816,-3900.0,0.00043013,30]
[328327433,1717168744840,-2800.0,0.00043013,30]
[328327434,1717168744868,-365.00954538,0.00043013,30]
[328327435,1717168744892,-150.0,0.00043047,30]
[328327436,1717168744917,-150.0,0.00043059,120]
[328327437,1717168744942,-150.0,0.00043082,30]
[328327438,1717168744968,-150.0,0.00043082,30]
[328327439,1717168744993,-150.0,0.00043082,30]
[328327440,1717168745021,-150.0,0.00043188,30]
[328327441,1717168745047,-150.05942183,0.00043205,30]
[328327442,1717168745072,-150.05942183,0.00043279,30]
[328327443,1717168745262,-1989.40074814,0.000433,60]
[328327444,1717168745288,-150.0,0.00043315,30]
[328327445,1717168745311,-150.0,0.00043329,30]
[328327446,1717168745335,-150.05942183,0.00043355,30]
[328327447,1717168745363,-150.66714902,0.00043393,30]
[328327448,1717168745385,-300.0,0.0004345,90]
[328327449,1717168745414,-150.0,0.0004347,30]
[328327450,1717168745438,-150.0,0.0004347,30]
[328327451,1717168745462,-150.0,0.0004347,30]
[328327452,1717168745487,-150.0,0.0004347,30]
[328327453,1717168745509,-150.0,0.0004347,30]
[328327454,1717168745532,-10000.0,0.000435,90]
[328327455,1717168745554,-2000.0,0.000435,30]
[328327456,1717168745578,-150.0,0.00043547,120]
[328327457,1717168745601,-150.0,0.00043548,30]
[328327458,1717168745623,-291.44340529,0.00043561,30]
[328327459,1717168745647,-636.18602664,0.00043561,30]
[328327460,1717168745669,-1700.0,0.00043561,30]
[328327461,1717168745692,-1800.0,0.00043561,30]
[328327462,1717168745714,-150.0,0.00043611,30]
[328327463,1717168745736,-150.0,0.00043752,30]
[328327464,1717168745762,-150.0,0.00043781,30]
[328327465,1717168745785,-150.0,0.00043781,30]
[328327466,1717168745809,-576355.81152644,0.000438,30]
[328327467,1717168745834,-150.0,0.0004383,120]
[328327468,1717168759428,393.870191,0.0004001,30]
[328327469,1717168766857,3200.7379856,0.00041918,60]
[328327497,1717169148275,-640.38725628,0.0001718,2]
[328327498,1717169148297,-205.30156829,0.0001718,2]
[328327499,1717169148317,-518.94122179,0.00017181,2]
[328327525,1717169432105,-269.09758648,0.0001682,2]
[328327526,1717169432117,-92.88302012,0.0001682,2]
[328327527,1717169432127,-3013.77052962,0.00016821,2]
[328327528,1717169432136,-2332.82498739,0.00016821,2]
[328327529,1717169432145,-1181.55417799,0.00016821,2]
[328327530,1717169432155,-234.70114228,0.00016821,2]
[328327531,1717169432164,-624.74565801,0.00016822,2]
[328327532,1717169432175,-268.78049174,0.00016822,2]
[328327533,1717169432185,-155.0,0.00016823,2]
[328327534,1717169432194,-785.08586126,0.00016824,2]
[328327535,1717169432203,-168.21493625,0.00016824,2]
[328327536,1717169432212,-2608.44594019,0.00016837,2]
[328327537,1717169432222,-410.31583376,0.00017181,2]
[328327538,1717169432231,-347.07265404,0.00017181,2]
[328327539,1717169432240,-155.0,0.00017181,2]
[328327540,1717169432249,-544.85678975,0.00017193,2]
[328327541,1717169432259,-499.99,0.00017193,2]
[328327542,1717169432268,-786.91222028,0.00017194,2]
[328327543,1717169432277,-7565.94648744,0.00017252,2]
[328327544,1717169432289,-607.31474073,0.00017252,2]
[328327545,1717169432300,-22733.17596132,0.00017252,2]
[328327546,1717169432310,-4106.4357214,0.00017253,2]
[328327547,1717169432319,-2469.9030722,0.00017255,2]
[328327548,1717169432329,-442.97,0.00017534,2]
[328327549,1717169432338,-969.60211798,0.00017787,2]
[328327550,1717169432348,-504.0351841,0.00021375,2]
[328327551,1717169432357,-789.02916967,0.00022,2]
[328327552,1717169432366,-17802.43170484,0.000225,2]
[328327553,1717169432375,-322.161,0.000225,2]
[328327554,1717169432385,-160.97,0.00024384,2]
[328327555,1717169432394,-589.0,0.00025,3]
[328327556,1717169432404,-249.48,0.00025751,2]
[328327557,1717169432413,-250.0,0.00026156,2]
[328327558,1717169432425,-171.25,0.00026247,2]
[328327559,1717169432435,-200.0,0.00026721,2]
[328327560,1717169432444,-23890.0,0.00026741,2]
[328327561,1717169432453,-1588.78,0.00026788,2]
[328327563,1717169432463,-250.0,0.00026932,2]
[328327565,1717169432472,-757.96,0.00027114,2]
[328327567,1717169432481,-333.64176052,0.00027507,2]
[328327569,1717169432493,-169.66,0.00027886,2]
[328327571,1717169432502,-8618.74429341,0.00028,2]
[328327573,1717169432512,-169.66,0.00028612,2]
[328327575,1717169432521,-973.1488606,0.00029,2]
[328327577,1717169432530,-169.66,0.00029339,2]
[328327579,1717169432539,-1588.78,0.00029528,2]
[328327581,1717169432548,-200.0,0.00030061,2]
[328327583,1717169432558,-465.7244302,0.000312,2]
[328327585,1717169432567,-154.2701707,0.00032105,7]
[328327587,1717169432576,-1588.78,0.00032268,2]
[328327589,1717169432585,-416.3,0.00032329,2]
[328327591,1717169432594,-871.61,0.00032329,2]
[328327593,1717169432604,-871.61,0.00032329,2]
[328327595,1717169432613,-871.61,0.00032329,2]
[328327597,1717169432623,-871.61,0.00032329,2]
[328327599,1717169432635,-871.61,0.00032329,2]
[328327601,1717169432644,-863.75,0.00032329,2]
[328327603,1717169432653,-871.25,0.00032329,2]
[328327605,1717169432662,-150.0,0.00032466,2]
[328327607,1717169432675,-150.05942183,0.00032487,7]
[328327609,1717169432684,-2398.0,0.00032488,2]
[328327611,1717169432694,-177.305,0.00032488,2]
[328327612,1717169432706,-445.0,0.00032488,2]
[328327613,1717169432715,-164.0,0.00032488,2]
[328327614,1717169432724,-1644.0,0.00032488,2]
[328327615,1717169432733,-216.0,0.00032488,2]
[328327616,1717169432742,-1137.0,0.00032488,2]
[328327617,1717169432751,-3165.0,0.00032488,2]
[328327618,1717169432759,-1467.0,0.00032488,2]
[328327619,1717169432768,-5139.0,0.00032488,2]
[328327620,1717169432777,-975.0,0.00032488,2]
[328327621,1717169432786,-5765.0,0.00032488,2]
[328327623,1717169432796,-289.0,0.00032488,2]
[328327624,1717169432805,-259.04429055,0.000325,10]
[328327625,1717169432815,-195.53713014,0.00032542,7]
[328327626,1717169432824,-259.04429053,0.00032578,10]
[328327627,1717169432833,-319.74639255,0.00032586,2]
[328327628,1717169432842,-2500.0,0.00032599,2]
[328327629,1717169432851,-2544.1861,0.000326,2]
[328327630,1717169432861,-200.90342447,0.000326,4]
[328327631,1717169432870,-192.05306906,0.000326,4]
[328327632,1717169432879,-172.96240639,0.000326,4]
[328327633,1717169432888,-182.47226424,0.000326,2]
[328327634,1717169432897,-3246.12750712,0.000326,2]
[328327635,1717169432906,-11733.73740226,0.000326,4]
[328327636,1717169432915,-155.60660082,0.0003263,4]
[328327637,1717169432927,-151.38,0.00032643,2]
[328327638,1717169432936,-923787.73452049,0.00032654,4]
[328327639,1717169432948,-372.40005352,0.00032654,4]
[328327640,1717169432959,-2873.24569093,0.00032654,4]
[328327641,1717169432968,-11733.73740223,0.00032655,4]
[328327642,1717169432977,-259.04429053,0.00032656,10]
[328327643,1717169432987,-3246.12750712,0.00032686,2]
[328327644,1717169432997,-183.4578833,0.00032689,2]
[328327645,1717169433006,-203.3768,0.000327,2]
[328327646,1717169433015,-19741.04876705,0.000327,2]
[328327647,1717169433027,-6748.19516,0.000327,2]
[328327667,1717169438055,-634.6549469,0.0002,2]
[328327668,1717169438064,-1224.0,0.00032488,2]
[328327669,1717169438073,-986.93257295,0.000327,2]
[328327670,1717169438082,-64750.80202569,0.000327,2]
[328327671,1717169438093,-5000.0,0.000327,2]
[328327672,1717169438104,-1122.94407473,0.000327,2]
[328327805,1717169441197,-614.0,0.00032488,2]
[328327806,1717169441207,-557.61237874,0.000327,2]
[328327862,1717169443054,-418.42,0.00029949,2]
[328327864,1717169443063,-418.42,0.00032213,2]
[328327866,1717169443073,-28568.64152084,0.000327,2]
[328327868,1717169443082,-11733.73740223,0.00032709,4]
[328327871,1717169443092,-259.04429053,0.00032733,10]
[328327873,1717169443101,-200.90342447,0.0003275,4]
[328327875,1717169443110,-151.38,0.00032757,2]
[328327877,1717169443120,-11733.73740223,0.00032764,4]
[328327879,1717169443129,-148565.7159597,0.00032767,2]
[328327881,1717169443141,-8672.67610256,0.00032767,2]
[328327888,1717169443567,-3022.23659322,0.00032767,2]
[328327889,1717169443578,-250.14226776,0.00032767,2]
[328327890,1717169443589,-715.36994382,0.00032767,2]
[328327891,1717169443600,-23025.2709519,0.00032767,2]
[328327892,1717169443611,-2301.78115799,0.00032767,2]
[328327894,1717169444004,-336.255,0.00032767,2]
[328327896,1717169444016,-449.3685477,0.00032767,2]
[328327898,1717169444027,-397.38,0.00032767,2]
[328327900,1717169444039,-257.0,0.00032767,2]
[328327902,1717169444050,-57006.80347535,0.00032767,2]
[328327904,1717169444060,-3246.12750712,0.00032771,2]
[328327905,1717169444069,-259.04429053,0.00032811,10]
[328327907,1717169444078,-6978.494727,0.00032818,4]
[328327936,1717169446416,-363.34769394,0.00017259,2]
[328327937,1717169446426,-584.98289745,0.00032488,2]
[328327938,1717169446501,-283.5097878,0.00032488,2]
[328327939,1717169446515,-192.50731475,0.00032488,2]
[328327941,1717169446524,-815.94047023,0.00032818,4]
[328327943,1717169446536,-839.36993136,0.00032818,4]
[328327945,1717169446547,-3099.93227364,0.00032818,4]
[328327947,1717169446556,-500.0,0.00032824,2]
[328327949,1717169446566,-3246.12750712,0.00032857,2]
[328327951,1717169446575,-11733.73740223,0.00032873,4]
[328327953,1717169446584,-500.0,0.00032876,11]
[328327955,1717169446594,-500.0,0.00032876,11]
[328327956,1717169446604,-313.66152845,0.00032876,11]
[328327957,1717169446614,-330.10885904,0.00032876,11]
[328327958,1717169446624,-500.0,0.00032876,11]
[328327959,1717169446638,-500.0,0.00032876,11]
[328327960,1717169446648,-500.0,0.00032876,11]
[328327961,1717169446657,-500.0,0.00032876,11]
[328327962,1717169446666,-500.0,0.00032876,11]
[328327963,1717169446677,-500.0,0.00032876,11]
[328327969,1717169446837,-500.0,0.00032876,11]
[328327971,1717169446847,-500.0,0.00032876,11]
[328327973,1717169446857,-500.0,0.00032876,11]
[328327975,1717169446867,-500.0,0.00032876,11]
[328327977,1717169446876,-500.0,0.00032876,11]
[328327979,1717169446885,-302.45223631,0.00032876,11]
[328327981,1717169446894,-500.0,0.00032876,11]
[328327983,1717169446903,-500.0,0.00032876,11]
[328327985,1717169446912,-500.0,0.00032876,11]
[328327987,1717169446921,-500.0,0.00032876,11]
[328327989,1717169446930,-500.0,0.00032876,11]
[328327991,1717169446941,-500.0,0.00032876,11]
[328327993,1717169446950,-500.0,0.00032876,11]
[328327995,1717169446959,-500.0,0.00032876,11]
[328327997,1717169446968,-500.0,0.00032876,11]
[328327999,1717169446977,-500.0,0.00032876,11]
[328328001,1717169446985,-500.0,0.00032876,11]
[328328003,1717169446995,-500.0,0.00032876,11]
[328328005,1717169447003,-500.0,0.00032876,11]
[328328007,1717169447013,-377.2046902,0.00032876,11]
[328328009,1717169447022,-500.0,0.00032876,11]
[328328011,1717169447031,-500.0,0.00032876,11]
[328328013,1717169447041,-500.0,0.00032876,11]
[328328014,1717169447050,-500.0,0.00032876,11]
[328328015,1717169447059,-500.0,0.00032876,11]
[328328016,1717169447068,-500.0,0.00032876,11]
[328328017,1717169447077,-632.68,0.00032876,11]
[328328018,1717169447086,-500.0,0.00032876,11]
[328328019,1717169447095,-500.0,0.00032876,11]
[328328020,1717169447104,-500.0,0.00032876,11]
[328328021,1717169447113,-500.0,0.00032876,11]
[328328022,1717169447123,-500.0,0.00032876,11]
[328328024,1717169447132,-500.0,0.00032876,11]
[328328027,1717169447141,-500.0,0.00032876,11]
[328328028,1717169447151,-500.0,0.00032876,11]
[328328031,1717169447160,-500.0,0.00032876,11]
[328328033,1717169447169,-500.0,0.00032876,11]
[328328035,1717169447178,-624.58,0.00032876,11]
[328328037,1717169447187,-500.0,0.00032876,11]
[328328038,1717169447196,-500.0,0.00032876,11]
[328328040,1717169447205,-500.0,0.00032876,11]
[328328042,1717169447214,-500.0,0.00032876,11]
[328328044,1717169447223,-500.0,0.00032876,11]
[328328046,1717169447232,-500.0,0.00032876,11]
[328328048,1717169447242,-333.98240317,0.00032876,11]
[328328050,1717169447251,-500.0,0.00032876,11]
[328328052,1717169447260,-500.0,0.00032876,11]
[328328054,1717169447269,-500.0,0.00032876,11]
[328328056,1717169447278,-500.0,0.00032876,11]
[328328059,1717169447290,-500.0,0.00032876,11]
[328328061,1717169447299,-617.93,0.00032876,11]
[328328062,1717169447308,-500.0,0.00032876,11]
[328328064,1717169447318,-500.0,0.00032876,11]
[328328066,1717169447327,-500.0,0.00032876,11]
[328328068,1717169447336,-500.0,0.00032876,2]
[328328070,1717169447344,-523.28,0.00032876,11]
[328328071,1717169447354,-500.0,0.00032876,2]
[328328073,1717169447363,-500.0,0.00032876,2]
[328328075,1717169447373,-500.0,0.00032876,2]
[328328076,1717169447382,-500.0,0.00032876,2]
[328328078,1717169447391,-500.0,0.00032876,11]
[328328080,1717169447400,-500.0,0.00032876,11]
[328328081,1717169447410,-500.0,0.00032876,11]
[328328082,1717169447419,-500.0,0.00032876,11]
[328328083,1717169447428,-500.0,0.00032876,11]
[328328084,1717169447438,-638.47,0.00032876,11]
[328328085,1717169447446,-500.0,0.00032876,11]
[328328086,1717169447455,-500.0,0.00032876,11]
[328328087,1717169447464,-500.0,0.00032876,11]
[328328088,1717169447473,-500.0,0.00032876,11]
[328328089,1717169447483,-500.0,0.00032876,11]
[328328090,1717169447492,-500.0,0.00032876,11]
[328328091,1717169447502,-500.0,0.00032876,11]
[328328092,1717169447511,-500.0,0.00032876,11]
[328328093,1717169447520,-500.0,0.00032876,11]
[328328094,1717169447531,-500.0,0.00032876,11]
[328328095,1717169447540,-500.0,0.00032876,11]
[328328096,1717169447550,-500.0,0.00032876,11]
[328328097,1717169447561,-500.0,0.00032876,11]
[328328098,1717169447572,-500.0,0.00032876,11]
[328328099,1717169447581,-580.64,0.00032876,11]
[328328100,1717169447590,-580.64,0.00032876,11]
[328328101,1717169447599,-580.64,0.00032876,11]
[328328102,1717169447608,-580.64,0.00032876,11]